[Event "Titled Tuesday Blitz February 15 Early 2022"]
[White "Lakshmi C"]
[Black "Eynullayev, Atilla"]
[WhiteFideId "25035347"]
[BlackFideId "13413570"]
[WhiteElo "1775"]
[BlackElo "1979"]
[Result "1-0"]
[Round "10"]
[TimeControl "180+1"]
[Date "2022.02.15"]
[WhiteClock "0:00:05"]
[BlackClock "0:00:10"]

1. d4 {[%clk 0:02:54]}  Nf6 {[%clk 0:02:58]} 2. c4 {[%clk 0:02:54]}  e6 {[%clk 0:02:57]} 3. Nc3 {[%clk 0:02:53]}  Bb4 {[%clk 0:02:56]} 4. a3 {[%clk 0:02:50]}  Bxc3+ {[%clk 0:02:54]} 5. bxc3 {[%clk 0:02:50]}  c5 {[%clk 0:02:50]} 6. Qc2 {[%clk 0:02:42]}  Nc6 {[%clk 0:02:45]} 7. Nf3 {[%clk 0:02:42]}  b6 {[%clk 0:02:42]} 8. e4 {[%clk 0:02:39]}  O-O {[%clk 0:02:43]} 9. Bd3 {[%clk 0:02:38]}  Ne8 {[%clk 0:02:42]} 10. O-O {[%clk 0:02:12]}  Ba6 {[%clk 0:02:40]} 11. e5 {[%clk 0:02:02]}  f5 {[%clk 0:02:34]} 12. d5 {[%clk 0:02:00]}  Na5 {[%clk 0:02:33]} 13. Bg5 {[%clk 0:01:36]}  Qc8 {[%clk 0:02:16]} 14. Qe2 {[%clk 0:01:35]}  h6 {[%clk 0:02:13]} 15. Bd2 {[%clk 0:01:05]}  Nb3 {[%clk 0:02:09]} 16. Rab1 {[%clk 0:01:03]}  Nxd2 {[%clk 0:02:09]} 17. Nxd2 {[%clk 0:01:00]}  g5 {[%clk 0:02:10]} 18. f4 {[%clk 0:01:00]}  g4 {[%clk 0:02:09]} 19. h3 {[%clk 0:00:58]}  h5 {[%clk 0:02:10]} 20. Qf2 {[%clk 0:00:58]}  Qd8 {[%clk 0:02:09]} 21. Be2 {[%clk 0:00:51]}  Rf7 {[%clk 0:02:09]} 22. d6 {[%clk 0:00:39]}  Bb7 {[%clk 0:02:04]} 23. h4 {[%clk 0:00:32]}  Rg7 {[%clk 0:02:01]} 24. g3 {[%clk 0:00:31]}  Qc8 {[%clk 0:02:00]} 25. Qh2 {[%clk 0:00:30]}  Qc6 {[%clk 0:01:59]} 26. Rfe1 {[%clk 0:00:29]}  Qa4 {[%clk 0:01:56]} 27. Rb3 {[%clk 0:00:26]}  Nxd6 {[%clk 0:01:12]} 28. exd6 {[%clk 0:00:25]}  e5 {[%clk 0:01:13]} 29. fxe5 {[%clk 0:00:17]}  f4 {[%clk 0:01:13]} 30. Bd1 {[%clk 0:00:17]}  Qc6 {[%clk 0:01:10]} 31. Ne4 {[%clk 0:00:17]}  Rf8 {[%clk 0:01:05]} 32. gxf4 {[%clk 0:00:17]}  g3 {[%clk 0:01:02]} 33. Qe2 {[%clk 0:00:16]}  Rxf4 {[%clk 0:00:59]} 34. Qxh5 {[%clk 0:00:12]}  Rxe4 {[%clk 0:00:30]} 35. Qe8+ {[%clk 0:00:11]}  Kh7 {[%clk 0:00:30]} 36. Bc2 {[%clk 0:00:11]}  Rg4 {[%clk 0:00:23]} 37. Qh5+ {[%clk 0:00:10]}  Kg7 {[%clk 0:00:23]} 38. Rxe4 {[%clk 0:00:08]}  Rxe4 {[%clk 0:00:24]} 39. Qg5+ {[%clk 0:00:08]}  Kh7 {[%clk 0:00:14]} 40. Qf5+ {[%clk 0:00:08]}  Kh6 {[%clk 0:00:14]} 41. Qxe4 {[%clk 0:00:09]}  Qxe4 {[%clk 0:00:15]} 42. Bxe4 {[%clk 0:00:09]}  Bxe4 {[%clk 0:00:16]} 43. Rb2 {[%clk 0:00:08]}  Kg6 {[%clk 0:00:15]} 44. Re2 {[%clk 0:00:08]}  Bc6 {[%clk 0:00:14]} 45. Re3 {[%clk 0:00:08]}  Kf5 {[%clk 0:00:14]} 46. Rxg3 {[%clk 0:00:05]}  Kxe5 {[%clk 0:00:15]} 47. Rg6 {[%clk 0:00:05]}  Be4 {[%clk 0:00:14]} 48. Rh6 {[%clk 0:00:06]}  Kf5 {[%clk 0:00:13]} 49. Kf2 {[%clk 0:00:06]}  Kg4 {[%clk 0:00:12]} 50. Ke3 {[%clk 0:00:06]}  Bc6 {[%clk 0:00:13]} 51. Rh7 {[%clk 0:00:05]}  a6 {[%clk 0:00:11]} 52. Rh8 {[%clk 0:00:05]}  b5 {[%clk 0:00:11]} 53. cxb5 {[%clk 0:00:05]}  axb5 {[%clk 0:00:11]} 54. Kd3 {[%clk 0:00:05]}  Bd5 {[%clk 0:00:10]} 55. h5 {[%clk 0:00:05]}  Kg5 {[%clk 0:00:10]} 56. h6 {[%clk 0:00:05]}  Kg6 {[%clk 0:00:11]} 57. Ke3 {[%clk 0:00:05]}  Bc6 {[%clk 0:00:09]} 58. Kf4 {[%clk 0:00:04]}  Bd5 {[%clk 0:00:09]} 59. Ke5 {[%clk 0:00:05]}  Be6 {[%clk 0:00:10]} 60. Re8 {[%clk 0:00:04]}  Bc4 {[%clk 0:00:09]} 61. Re7 {[%clk 0:00:04]}  Kxh6 {[%clk 0:00:10]} 62. Rxd7 {[%clk 0:00:04]}  b4 {[%clk 0:00:11]} 63. axb4 {[%clk 0:00:03]}  Bb5 {[%clk 0:00:11]} 64. Rb7 {[%clk 0:00:03]}  cxb4 {[%clk 0:00:12]} 65. cxb4 {[%clk 0:00:03]}  Bc4 {[%clk 0:00:12]} 66. Rb8 {[%clk 0:00:03]}  Bf7 {[%clk 0:00:13]} 67. d7 {[%clk 0:00:03]}  Kg5 {[%clk 0:00:13]} 68. d8=Q+ {[%clk 0:00:04]}  Kg4 {[%clk 0:00:13]} 69. Qe7 {[%clk 0:00:04]}  Bg6 {[%clk 0:00:13]} 70. Qf6 {[%clk 0:00:04]}  Bd3 {[%clk 0:00:12]} 71. Rg8+ {[%clk 0:00:05]}  Kh5 {[%clk 0:00:11]} 72. Qf3+ {[%clk 0:00:05]}  Kh4 {[%clk 0:00:10]} 73. Qg4# {[%clk 0:00:05]} 1-0


[Site "https://www.chess.com"]

[Event "Titled Tuesday Blitz February 15 Early 2022"]
[White "Le, Tuan Minh"]
[Black "Kamsky, Gata"]
[WhiteFideId "12401153"]
[BlackFideId "2000024"]
[WhiteElo "2450"]
[BlackElo "2645"]
[Result "1/2-1/2"]
[Round "10"]
[TimeControl "180+1"]
[Date "2022.02.15"]
[WhiteClock "0:00:05"]
[BlackClock "0:00:06"]

1. d4 {[%clk 0:03:00]}  Nf6 {[%clk 0:02:55]} 2. Nf3 {[%clk 0:02:59]}  g6 {[%clk 0:02:56]} 3. Bg5 {[%clk 0:02:59]}  Bg7 {[%clk 0:02:56]} 4. Nbd2 {[%clk 0:02:59]}  d5 {[%clk 0:02:50]} 5. c3 {[%clk 0:02:59]}  O-O {[%clk 0:02:49]} 6. e3 {[%clk 0:03:00]}  c6 {[%clk 0:02:47]} 7. Bd3 {[%clk 0:03:00]}  Bg4 {[%clk 0:02:43]} 8. Qb3 {[%clk 0:02:59]}  Qb6 {[%clk 0:02:42]} 9. c4 {[%clk 0:03:00]}  Bxf3 {[%clk 0:02:37]} 10. gxf3 {[%clk 0:02:52]}  e6 {[%clk 0:02:35]} 11. O-O {[%clk 0:02:51]}  Nbd7 {[%clk 0:02:35]} 12. f4 {[%clk 0:02:48]}  a5 {[%clk 0:02:32]} 13. Rac1 {[%clk 0:02:44]}  a4 {[%clk 0:02:31]} 14. Qc2 {[%clk 0:02:43]}  Qa5 {[%clk 0:02:29]} 15. Nf3 {[%clk 0:02:42]}  dxc4 {[%clk 0:02:20]} 16. Qxc4 {[%clk 0:02:35]}  Nb6 {[%clk 0:02:19]} 17. Qc5 {[%clk 0:02:30]}  Nfd7 {[%clk 0:02:16]} 18. Qxa5 {[%clk 0:02:29]}  Rxa5 {[%clk 0:02:16]} 19. a3 {[%clk 0:02:29]}  Re8 {[%clk 0:02:14]} 20. Rfd1 {[%clk 0:02:15]}  f6 {[%clk 0:02:12]} 21. Bh4 {[%clk 0:02:15]}  Nd5 {[%clk 0:02:12]} 22. Bg3 {[%clk 0:02:12]}  f5 {[%clk 0:02:10]} 23. Nd2 {[%clk 0:02:08]}  Raa8 {[%clk 0:02:07]} 24. Nc4 {[%clk 0:02:05]}  Bf8 {[%clk 0:02:08]} 25. Kf1 {[%clk 0:02:03]}  N5b6 {[%clk 0:02:02]} 26. Nd2 {[%clk 0:01:57]}  Nd5 {[%clk 0:02:02]} 27. Ke2 {[%clk 0:01:56]}  Be7 {[%clk 0:02:01]} 28. Nf3 {[%clk 0:01:57]}  Rec8 {[%clk 0:01:59]} 29. Bh4 {[%clk 0:01:56]}  Bf8 {[%clk 0:01:56]} 30. Rc2 {[%clk 0:01:49]}  Bd6 {[%clk 0:01:49]} 31. Rdc1 {[%clk 0:01:48]}  Re8 {[%clk 0:01:48]} 32. Bg3 {[%clk 0:01:43]}  Bf8 {[%clk 0:01:47]} 33. Nd2 {[%clk 0:01:37]}  N7b6 {[%clk 0:01:45]} 34. f3 {[%clk 0:01:17]}  Bd6 {[%clk 0:01:42]} 35. Be1 {[%clk 0:01:16]}  Bxf4 {[%clk 0:01:36]} 36. Nf1 {[%clk 0:01:11]}  Bd6 {[%clk 0:01:35]} 37. f4 {[%clk 0:00:52]}  Be7 {[%clk 0:01:31]} 38. Nd2 {[%clk 0:00:50]}  Red8 {[%clk 0:01:30]} 39. Nf3 {[%clk 0:00:50]}  Nd7 {[%clk 0:01:29]} 40. Bd2 {[%clk 0:00:49]}  N7f6 {[%clk 0:01:27]} 41. Rg1 {[%clk 0:00:45]}  Bd6 {[%clk 0:01:22]} 42. h3 {[%clk 0:00:42]}  Kf7 {[%clk 0:01:22]} 43. Be1 {[%clk 0:00:40]}  Kg7 {[%clk 0:01:19]} 44. Bh4 {[%clk 0:00:40]}  Re8 {[%clk 0:01:18]} 45. Bc4 {[%clk 0:00:40]}  Ne4 {[%clk 0:01:17]} 46. Be1 {[%clk 0:00:40]}  Ndf6 {[%clk 0:01:14]} 47. Ne5 {[%clk 0:00:38]}  Nd5 {[%clk 0:00:57]} 48. Bd3 {[%clk 0:00:37]}  Nef6 {[%clk 0:00:57]} 49. Kf3 {[%clk 0:00:37]}  Red8 {[%clk 0:00:55]} 50. Rcg2 {[%clk 0:00:37]}  Rf8 {[%clk 0:00:52]} 51. Bh4 {[%clk 0:00:35]}  Rae8 {[%clk 0:00:45]} 52. Bc2 {[%clk 0:00:33]}  Bxe5 {[%clk 0:00:45]} 53. fxe5 {[%clk 0:00:25]}  Nd7 {[%clk 0:00:43]} 54. Bxa4 {[%clk 0:00:25]}  f4 {[%clk 0:00:41]} 55. e4 {[%clk 0:00:23]}  Ne3 {[%clk 0:00:41]} 56. Rd2 {[%clk 0:00:15]}  b5 {[%clk 0:00:42]} 57. Bb3 {[%clk 0:00:13]}  c5 {[%clk 0:00:35]} 58. Bf6+ {[%clk 0:00:13]}  Nxf6 {[%clk 0:00:34]} 59. exf6+ {[%clk 0:00:14]}  Kxf6 {[%clk 0:00:34]} 60. dxc5 {[%clk 0:00:15]}  g5 {[%clk 0:00:32]} 61. h4 {[%clk 0:00:09]}  h6 {[%clk 0:00:31]} 62. c6 {[%clk 0:00:07]}  Re7 {[%clk 0:00:29]} 63. hxg5+ {[%clk 0:00:05]}  hxg5 {[%clk 0:00:29]} 64. Rh2 {[%clk 0:00:05]}  Rg8 {[%clk 0:00:27]} 65. Rh6+ {[%clk 0:00:06]}  Ke5 {[%clk 0:00:27]} 66. Rh5 {[%clk 0:00:06]}  Kf6 {[%clk 0:00:27]} 67. c7 {[%clk 0:00:04]}  Rxc7 {[%clk 0:00:26]} 68. Rh6+ {[%clk 0:00:05]}  Rg6 {[%clk 0:00:26]} 69. Rxg6+ {[%clk 0:00:02]}  Kxg6 {[%clk 0:00:26]} 70. Bxe6 {[%clk 0:00:03]}  Kf6 {[%clk 0:00:26]} 71. Bb3 {[%clk 0:00:03]}  Re7 {[%clk 0:00:23]} 72. Rh1 {[%clk 0:00:02]}  Ke5 {[%clk 0:00:22]} 73. Rh5 {[%clk 0:00:02]}  Rg7 {[%clk 0:00:22]} 74. Ba2 {[%clk 0:00:02]}  Kd4 {[%clk 0:00:21]} 75. Bb3 {[%clk 0:00:01]}  g4+ {[%clk 0:00:22]} 76. Kxf4 {[%clk 0:00:02]}  g3 {[%clk 0:00:22]} 77. Rh1 {[%clk 0:00:02]}  g2 {[%clk 0:00:22]} 78. Rg1 {[%clk 0:00:03]}  Rh7 {[%clk 0:00:21]} 79. Kf3 {[%clk 0:00:02]}  Rh1 {[%clk 0:00:21]} 80. Kf2 {[%clk 0:00:02]}  Rh4 {[%clk 0:00:19]} 81. Ke2 {[%clk 0:00:01]}  Rxe4 {[%clk 0:00:18]} 82. Kf3 {[%clk 0:00:02]}  Re5 {[%clk 0:00:17]} 83. Ba2 {[%clk 0:00:02]}  Rf5+ {[%clk 0:00:17]} 84. Kg3 {[%clk 0:00:02]}  Rf1 {[%clk 0:00:17]} 85. Kh2 {[%clk 0:00:03]}  Ke4 {[%clk 0:00:16]} 86. Bb1+ {[%clk 0:00:03]}  Kf3 {[%clk 0:00:16]} 87. Bd3 {[%clk 0:00:03]}  Kf2 {[%clk 0:00:16]} 88. Rxg2+ {[%clk 0:00:04]}  Nxg2 {[%clk 0:00:16]} 89. Bxf1 {[%clk 0:00:05]}  Kxf1 {[%clk 0:00:16]} 90. Kg3 {[%clk 0:00:06]}  Ne1 {[%clk 0:00:15]} 91. Kf4 {[%clk 0:00:06]}  Ke2 {[%clk 0:00:16]} 92. Ke4 {[%clk 0:00:06]}  Nd3 {[%clk 0:00:16]} 93. Kd4 {[%clk 0:00:06]}  Kd2 {[%clk 0:00:16]} 94. b3 {[%clk 0:00:04]}  Kc2 {[%clk 0:00:16]} 95. a4 {[%clk 0:00:04]}  bxa4 {[%clk 0:00:07]} 96. bxa4 {[%clk 0:00:05]}  Nb4 {[%clk 0:00:06]} 97. Kc5 {[%clk 0:00:05]}  Kb3 {[%clk 0:00:06]} 98. Kb5 {[%clk 0:00:05]}  Ka3 {[%clk 0:00:06]} 99. a5 {[%clk 0:00:05]}  Kb3 {[%clk 0:00:06]} 100. Kc5 {[%clk 0:00:05]}  Ka4 {[%clk 0:00:06]} 101. Kb6 {[%clk 0:00:06]}  Nd5+ {[%clk 0:00:06]} 102. Kc6 {[%clk 0:00:05]}  Kxa5 {[%clk 0:00:06]} 1/2-1/2


[Site "https://www.chess.com"]

[Event "Titled Tuesday Blitz February 15 Early 2022"]
[White "Martin, Lewis"]
[Black "Stromboli, Ettore"]
[WhiteFideId "410551"]
[BlackFideId "813761"]
[WhiteElo "2145"]
[BlackElo "2414"]
[Result "0-1"]
[Round "10"]
[TimeControl "180+1"]
[Date "2022.02.15"]
[WhiteClock "0:00:15"]
[BlackClock "0:00:04"]

1. e4 {[%clk 0:03:00]}  e6 {[%clk 0:03:00]} 2. d4 {[%clk 0:03:00]}  d5 {[%clk 0:02:59]} 3. Nd2 {[%clk 0:03:00]}  c5 {[%clk 0:02:59]} 4. exd5 {[%clk 0:02:59]}  exd5 {[%clk 0:02:54]} 5. Ngf3 {[%clk 0:02:58]}  Nc6 {[%clk 0:02:52]} 6. dxc5 {[%clk 0:02:55]}  Bxc5 {[%clk 0:02:45]} 7. Nb3 {[%clk 0:02:56]}  Bd6 {[%clk 0:02:38]} 8. Bd3 {[%clk 0:02:53]}  Nge7 {[%clk 0:02:33]} 9. O-O {[%clk 0:02:53]}  O-O {[%clk 0:02:16]} 10. h3 {[%clk 0:02:52]}  Bf5 {[%clk 0:02:12]} 11. c3 {[%clk 0:02:48]}  Re8 {[%clk 0:02:10]} 12. Nbd4 {[%clk 0:02:41]}  Bg6 {[%clk 0:02:04]} 13. Bg5 {[%clk 0:02:36]}  Qd7 {[%clk 0:02:03]} 14. Re1 {[%clk 0:02:26]}  h6 {[%clk 0:01:53]} 15. Bh4 {[%clk 0:02:18]}  Bxd3 {[%clk 0:01:50]} 16. Qxd3 {[%clk 0:02:17]}  Ng6 {[%clk 0:01:50]} 17. Re3 {[%clk 0:02:01]}  Rxe3 {[%clk 0:01:41]} 18. Qxe3 {[%clk 0:01:59]}  Re8 {[%clk 0:01:40]} 19. Qd2 {[%clk 0:01:54]}  Bf4 {[%clk 0:01:34]} 20. Qd3 {[%clk 0:01:52]}  Nce5 {[%clk 0:01:34]} 21. Nxe5 {[%clk 0:01:41]}  Nxe5 {[%clk 0:01:35]} 22. Qf5 {[%clk 0:01:37]}  Qxf5 {[%clk 0:01:34]} 23. Nxf5 {[%clk 0:01:38]}  Nd3 {[%clk 0:01:29]} 24. Ne7+ {[%clk 0:01:35]}  Kf8 {[%clk 0:01:26]} 25. Nxd5 {[%clk 0:01:36]}  g5 {[%clk 0:01:17]} 26. Nxf4 {[%clk 0:01:32]}  Nxf4 {[%clk 0:00:59]} 27. Bg3 {[%clk 0:01:32]}  Re2 {[%clk 0:00:56]} 28. Bxf4 {[%clk 0:01:30]}  gxf4 {[%clk 0:00:57]} 29. Rb1 {[%clk 0:01:29]}  Ke7 {[%clk 0:00:54]} 30. Kf1 {[%clk 0:01:28]}  Rc2 {[%clk 0:00:54]} 31. f3 {[%clk 0:01:22]}  Kf6 {[%clk 0:00:53]} 32. a4 {[%clk 0:01:07]}  Kg5 {[%clk 0:00:51]} 33. b4 {[%clk 0:01:05]}  Kh4 {[%clk 0:00:48]} 34. Re1 {[%clk 0:01:02]}  Kg3 {[%clk 0:00:47]} 35. Re7 {[%clk 0:00:59]}  Rxg2 {[%clk 0:00:38]} 36. Rxf7 {[%clk 0:00:59]}  Rc2 {[%clk 0:00:37]} 37. Rxb7 {[%clk 0:00:56]}  Kxf3 {[%clk 0:00:37]} 38. Ke1 {[%clk 0:00:55]}  a6 {[%clk 0:00:26]} 39. b5 {[%clk 0:00:54]}  axb5 {[%clk 0:00:25]} 40. axb5 {[%clk 0:00:55]}  Rxc3 {[%clk 0:00:26]} 41. Rb6 {[%clk 0:00:51]}  Rb3 {[%clk 0:00:24]} 42. Rxh6 {[%clk 0:00:48]}  Rb1+ {[%clk 0:00:23]} 43. Kd2 {[%clk 0:00:47]}  Rxb5 {[%clk 0:00:24]} 44. Rf6 {[%clk 0:00:47]}  Kg3 {[%clk 0:00:22]} 45. h4 {[%clk 0:00:45]}  Re5 {[%clk 0:00:22]} 46. h5 {[%clk 0:00:43]}  Rxh5 {[%clk 0:00:20]} 47. Ke2 {[%clk 0:00:43]}  Rh2+ {[%clk 0:00:20]} 48. Kf1 {[%clk 0:00:42]}  Kf3 {[%clk 0:00:18]} 49. Kg1 {[%clk 0:00:38]}  Rg2+ {[%clk 0:00:16]} 50. Kf1 {[%clk 0:00:38]}  Ra2 {[%clk 0:00:16]} 51. Kg1 {[%clk 0:00:38]}  Ra1+ {[%clk 0:00:16]} 52. Kh2 {[%clk 0:00:38]}  Ke3 {[%clk 0:00:17]} 53. Kg2 {[%clk 0:00:37]}  Ra2+ {[%clk 0:00:16]} 54. Kf1 {[%clk 0:00:36]}  Kf3 {[%clk 0:00:13]} 55. Kg1 {[%clk 0:00:36]}  Rg2+ {[%clk 0:00:12]} 56. Kf1 {[%clk 0:00:34]}  Rd2 {[%clk 0:00:10]} 57. Kg1 {[%clk 0:00:33]}  Rd1+ {[%clk 0:00:10]} 58. Kh2 {[%clk 0:00:34]}  Ra1 {[%clk 0:00:10]} 59. Rf7 {[%clk 0:00:32]}  Ra4 {[%clk 0:00:06]} 60. Rf6 {[%clk 0:00:31]}  Kf2 {[%clk 0:00:06]} 61. Rf7 {[%clk 0:00:28]}  f3 {[%clk 0:00:05]} 62. Kh3 {[%clk 0:00:25]}  Re4 {[%clk 0:00:03]} 63. Rf6 {[%clk 0:00:24]}  Re1 {[%clk 0:00:02]} 64. Kg4 {[%clk 0:00:22]}  Rg1+ {[%clk 0:00:02]} 65. Kh3 {[%clk 0:00:20]}  Ke2 {[%clk 0:00:01]} 66. Re6+ {[%clk 0:00:18]}  Kf1 {[%clk 0:00:01]} 67. Rf6 {[%clk 0:00:17]}  f2 {[%clk 0:00:01]} 68. Kh2 {[%clk 0:00:17]}  Rg2+ {[%clk 0:00:01]} 69. Kh1 {[%clk 0:00:17]}  Rg8 {[%clk 0:00:02]} 70. Kh2 {[%clk 0:00:17]}  Rg7 {[%clk 0:00:02]} 71. Rf5 {[%clk 0:00:16]}  Rh7+ {[%clk 0:00:02]} 72. Kg3 {[%clk 0:00:16]}  Kg1 {[%clk 0:00:03]} 73. Rxf2 {[%clk 0:00:16]}  Rg7+ {[%clk 0:00:03]} 74. Kf3 {[%clk 0:00:15]}  Rf7+ {[%clk 0:00:03]} 75. Ke3 {[%clk 0:00:15]}  Rxf2 {[%clk 0:00:04]} 0-1


[Site "https://www.chess.com"]

[Event "Titled Tuesday Blitz February 15 Early 2022"]
[White "Matveeva, Olga"]
[Black "Kejzar, Petra"]
[WhiteFideId "24107018"]
[BlackFideId "14610213"]
[WhiteElo "2083"]
[BlackElo "2006"]
[Result "1-0"]
[Round "10"]
[TimeControl "180+1"]
[Date "2022.02.15"]
[WhiteClock "0:01:37"]
[BlackClock "0:01:07"]

1. e4 {[%clk 0:03:00]}  c5 {[%clk 0:02:59]} 2. Nf3 {[%clk 0:02:59]}  Nc6 {[%clk 0:02:59]} 3. Bb5 {[%clk 0:02:55]}  g6 {[%clk 0:02:57]} 4. O-O {[%clk 0:02:33]}  Bg7 {[%clk 0:02:55]} 5. c3 {[%clk 0:02:32]}  a6 {[%clk 0:02:49]} 6. Bxc6 {[%clk 0:02:30]}  dxc6 {[%clk 0:02:48]} 7. Qe2 {[%clk 0:02:28]}  e6 {[%clk 0:02:34]} 8. d4 {[%clk 0:02:21]}  cxd4 {[%clk 0:02:32]} 9. cxd4 {[%clk 0:02:21]}  Ne7 {[%clk 0:02:31]} 10. Nc3 {[%clk 0:02:18]}  O-O {[%clk 0:02:30]} 11. Bg5 {[%clk 0:02:16]}  Qc7 {[%clk 0:02:24]} 12. Rad1 {[%clk 0:02:13]}  h6 {[%clk 0:02:21]} 13. Bh4 {[%clk 0:02:10]}  c5 {[%clk 0:02:13]} 14. d5 {[%clk 0:02:05]}  exd5 {[%clk 0:02:09]} 15. exd5 {[%clk 0:02:04]}  Nf5 {[%clk 0:02:06]} 16. d6 {[%clk 0:01:57]}  Qd7 {[%clk 0:02:01]} 17. Nd5 {[%clk 0:01:51]}  Nxh4 {[%clk 0:01:52]} 18. Nxh4 {[%clk 0:01:50]}  Qxd6 {[%clk 0:01:47]} 19. Ne7+ {[%clk 0:01:48]}  Qxe7 {[%clk 0:01:41]} 20. Qxe7 {[%clk 0:01:47]}  Bg4 {[%clk 0:01:39]} 21. Qxb7 {[%clk 0:01:44]}  Bxd1 {[%clk 0:01:36]} 22. Rxd1 {[%clk 0:01:45]}  Bxb2 {[%clk 0:01:28]} 23. Qxb2 {[%clk 0:01:43]}  Rfc8 {[%clk 0:01:24]} 24. Nf3 {[%clk 0:01:41]}  c4 {[%clk 0:01:24]} 25. Qc3 {[%clk 0:01:41]}  Rc7 {[%clk 0:01:19]} 26. Ne5 {[%clk 0:01:40]}  Re8 {[%clk 0:01:15]} 27. Ng4 {[%clk 0:01:38]}  Re6 {[%clk 0:01:08]} 28. Nxh6+ {[%clk 0:01:37]}  Kh7 {[%clk 0:01:07]} 29. Ng4 {[%clk 0:01:37]} 1-0


[Site "https://www.chess.com"]

[Event "Titled Tuesday Blitz February 15 Early 2022"]
[White "Maung, Maung Kyaw Zaw Hein"]
[Black "Dzhaparov, Medet"]
[WhiteFideId "13001698"]
[BlackFideId "13803689"]
[WhiteElo "1785"]
[BlackElo "1702"]
[Result "1-0"]
[Round "10"]
[TimeControl "180+1"]
[Date "2022.02.15"]
[WhiteClock "0:00:09"]
[BlackClock "0:00:06"]

1. Nf3 {[%clk 0:02:59]}  Nf6 {[%clk 0:02:58]} 2. c4 {[%clk 0:02:59]}  c5 {[%clk 0:02:57]} 3. Nc3 {[%clk 0:02:59]}  d6 {[%clk 0:02:55]} 4. d4 {[%clk 0:02:59]}  cxd4 {[%clk 0:02:55]} 5. Nxd4 {[%clk 0:03:00]}  e5 {[%clk 0:02:55]} 6. Ndb5 {[%clk 0:03:00]}  a6 {[%clk 0:02:55]} 7. Na3 {[%clk 0:03:00]}  Nc6 {[%clk 0:02:56]} 8. Bg5 {[%clk 0:02:59]}  Be7 {[%clk 0:02:55]} 9. g3 {[%clk 0:02:59]}  h6 {[%clk 0:02:55]} 10. Bxf6 {[%clk 0:02:59]}  Bxf6 {[%clk 0:02:54]} 11. Bg2 {[%clk 0:03:00]}  Qc7 {[%clk 0:02:52]} 12. Nd5 {[%clk 0:02:59]}  Qd8 {[%clk 0:02:50]} 13. O-O {[%clk 0:02:58]}  O-O {[%clk 0:02:49]} 14. Rc1 {[%clk 0:02:52]}  Be6 {[%clk 0:02:48]} 15. Nxf6+ {[%clk 0:02:45]}  Qxf6 {[%clk 0:02:49]} 16. Qxd6 {[%clk 0:02:44]}  Rad8 {[%clk 0:02:46]} 17. Qc5 {[%clk 0:02:43]}  Rd2 {[%clk 0:02:46]} 18. Bxc6 {[%clk 0:02:39]}  bxc6 {[%clk 0:02:45]} 19. Rc2 {[%clk 0:02:37]}  Rxc2 {[%clk 0:02:38]} 20. Nxc2 {[%clk 0:02:38]}  Rb8 {[%clk 0:02:35]} 21. b4 {[%clk 0:02:30]}  Bh3 {[%clk 0:02:32]} 22. Rd1 {[%clk 0:02:29]}  Qg5 {[%clk 0:02:23]} 23. Qxc6 {[%clk 0:02:23]}  Qg4 {[%clk 0:02:19]} 24. f3 {[%clk 0:02:16]}  Qg5 {[%clk 0:02:13]} 25. b5 {[%clk 0:01:57]}  axb5 {[%clk 0:02:12]} 26. cxb5 {[%clk 0:01:56]}  Rc8 {[%clk 0:02:00]} 27. Qe4 {[%clk 0:01:36]}  Bf5 {[%clk 0:01:58]} 28. Qxe5 {[%clk 0:01:35]}  Rxc2 {[%clk 0:01:57]} 29. b6 {[%clk 0:01:30]}  Bc8 {[%clk 0:01:31]} 30. Qe8+ {[%clk 0:01:01]}  Kh7 {[%clk 0:01:30]} 31. Qe4+ {[%clk 0:01:02]}  Bf5 {[%clk 0:01:28]} 32. Qe5 {[%clk 0:01:01]}  Qf6 {[%clk 0:00:56]} 33. Qxf6 {[%clk 0:00:51]}  gxf6 {[%clk 0:00:57]} 34. Rb1 {[%clk 0:00:43]}  Rc8 {[%clk 0:00:54]} 35. Rb5 {[%clk 0:00:40]}  Be6 {[%clk 0:00:50]} 36. a4 {[%clk 0:00:39]}  Bc4 {[%clk 0:00:48]} 37. Rb4 {[%clk 0:00:35]}  Bxe2 {[%clk 0:00:47]} 38. Kf2 {[%clk 0:00:33]}  Ba6 {[%clk 0:00:44]} 39. b7 {[%clk 0:00:22]}  Rb8 {[%clk 0:00:43]} 40. Rb6 {[%clk 0:00:23]}  Bxb7 {[%clk 0:00:41]} 41. a5 {[%clk 0:00:23]}  Ra8 {[%clk 0:00:28]} 42. Rxb7 {[%clk 0:00:22]}  Rxa5 {[%clk 0:00:29]} 43. Rxf7+ {[%clk 0:00:22]}  Kg6 {[%clk 0:00:29]} 44. Re7 {[%clk 0:00:23]}  Ra2+ {[%clk 0:00:28]} 45. Re2 {[%clk 0:00:23]}  Ra1 {[%clk 0:00:26]} 46. Rb2 {[%clk 0:00:23]}  Rc1 {[%clk 0:00:25]} 47. Kg2 {[%clk 0:00:23]}  Kg5 {[%clk 0:00:23]} 48. Kh3 {[%clk 0:00:22]}  Rc3 {[%clk 0:00:22]} 49. f4+ {[%clk 0:00:20]}  Kg6 {[%clk 0:00:22]} 50. Rb5 {[%clk 0:00:19]}  Rc4 {[%clk 0:00:20]} 51. Kg4 {[%clk 0:00:19]}  Ra4 {[%clk 0:00:18]} 52. h4 {[%clk 0:00:19]}  Rc4 {[%clk 0:00:15]} 53. h5+ {[%clk 0:00:19]}  Kf7 {[%clk 0:00:15]} 54. Rb7+ {[%clk 0:00:18]}  Ke6 {[%clk 0:00:13]} 55. Rh7 {[%clk 0:00:18]}  Rc5 {[%clk 0:00:11]} 56. Rxh6 {[%clk 0:00:18]}  Rc8 {[%clk 0:00:11]} 57. Rg6 {[%clk 0:00:17]}  Rh8 {[%clk 0:00:10]} 58. h6 {[%clk 0:00:12]}  Ra8 {[%clk 0:00:09]} 59. Kh5 {[%clk 0:00:11]}  Ra5+ {[%clk 0:00:09]} 60. Kh4 {[%clk 0:00:10]}  Ra8 {[%clk 0:00:09]} 61. g4 {[%clk 0:00:10]}  Ra1 {[%clk 0:00:08]} 62. g5 {[%clk 0:00:09]}  Rh1+ {[%clk 0:00:07]} 63. Kg3 {[%clk 0:00:09]}  Rg1+ {[%clk 0:00:07]} 64. Kf2 {[%clk 0:00:09]}  Ra1 {[%clk 0:00:07]} 65. Rxf6+ {[%clk 0:00:10]}  Ke7 {[%clk 0:00:06]} 66. h7 {[%clk 0:00:10]}  Rh1 {[%clk 0:00:06]} 67. Rh6 {[%clk 0:00:09]} 1-0


[Site "https://www.chess.com"]

[Event "Titled Tuesday Blitz February 15 Early 2022"]
[White "Mirzanurov, Bulat"]
[Black "Osiecki, Stanislaw"]
[WhiteFideId "4184521"]
[BlackFideId "1102990"]
[WhiteElo "2116"]
[BlackElo "2127"]
[Result "0-1"]
[Round "10"]
[TimeControl "180+1"]
[Date "2022.02.15"]
[WhiteClock "0:00:03"]
[BlackClock "0:00:57"]

1. e4 {[%clk 0:02:55]}  e6 {[%clk 0:02:58]} 2. d4 {[%clk 0:02:54]}  d5 {[%clk 0:02:56]} 3. Nc3 {[%clk 0:02:54]}  Bb4 {[%clk 0:02:55]} 4. e5 {[%clk 0:02:47]}  c5 {[%clk 0:02:55]} 5. a3 {[%clk 0:02:47]}  Bxc3+ {[%clk 0:02:54]} 6. bxc3 {[%clk 0:02:48]}  Qc7 {[%clk 0:02:55]} 7. Qg4 {[%clk 0:02:45]}  f5 {[%clk 0:02:55]} 8. exf6 {[%clk 0:02:22]}  Nxf6 {[%clk 0:02:45]} 9. Qf3 {[%clk 0:02:22]}  O-O {[%clk 0:02:41]} 10. Bf4 {[%clk 0:02:16]}  Qa5 {[%clk 0:02:34]} 11. dxc5 {[%clk 0:01:58]}  e5 {[%clk 0:02:21]} 12. Bxe5 {[%clk 0:01:34]}  Re8 {[%clk 0:02:20]} 13. Qg3 {[%clk 0:00:55]}  Nh5 {[%clk 0:01:52]} 14. Qe3 {[%clk 0:00:19]}  Nc6 {[%clk 0:01:44]} 15. f4 {[%clk 0:00:19]}  Nxf4 {[%clk 0:01:34]} 16. Qxf4 {[%clk 0:00:17]}  Qxc3+ {[%clk 0:01:24]} 17. Kf2 {[%clk 0:00:12]}  Nxe5 {[%clk 0:01:12]} 18. Re1 {[%clk 0:00:08]}  Rf8 {[%clk 0:01:07]} 19. Qxf8+ {[%clk 0:00:05]}  Kxf8 {[%clk 0:01:07]} 20. Bd3 {[%clk 0:00:02]}  Qxc5+ {[%clk 0:01:05]} 21. Kf1 {[%clk 0:00:02]}  Nxd3 {[%clk 0:01:02]} 22. cxd3 {[%clk 0:00:03]}  Bf5 {[%clk 0:01:00]} 23. Nf3 {[%clk 0:00:03]}  Bxd3+ {[%clk 0:00:57]} 0-1


[Site "https://www.chess.com"]